bitfinex/quotes_SOLUSD_20251124
["timestamp","ask_amount","ask_price","bid_price","bid_amount"]
[1763957444136,0.69,133.67,133.63,11.46616546]
[1763957445850,0.69,133.67,133.63,62.1]
[1763957445851,12.15616546,133.67,133.63,62.1]
[1763957446034,0.66,133.66,133.63,62.1]
[1763957446747,18.78096,133.66,133.61,11.46616546]
[1763957446956,30.24712546,133.66,133.61,11.46616546]
[1763957447130,0.66,133.65,133.61,11.46616546]
[1763957447838,0.66,133.66,133.63,11.46616546]
[1763957448027,0.66,133.66,133.64,11.46616546]
[1763957448230,0.66,133.66,133.63,11.46616546]
[1763957450241,0.66,133.66,133.64,11.46616546]
[1763957450643,0.66,133.66,133.64,7.4801668]
[1763957451239,0.66,133.66,133.62,22.52]
[1763957451450,7.4801668,133.64,133.57,3.32]
[1763957451757,7.4801668,133.62,133.57,7.4801668]
[1763957451944,8.1401668,133.61,133.56,7.4801668]
[1763957452350,8.1401668,133.61,133.55,3.32]
[1763957452351,0.66,133.6,133.57,7.4801668]
[1763957452544,0.66,133.6,133.56,7.4801668]
[1763957454752,0.66,133.6,133.57,7.4801668]
[1763957455145,0.66,133.6,133.56,7.4801668]
[1763957455338,0.66,133.6,133.54,65.42]
[1763957455339,0.66,133.6,133.55,7.4801668]
[1763957455546,0.66,133.6,133.53,62.1]
[1763957455547,7.4801668,133.59,133.53,62.1]
[1763957455745,7.4801668,133.59,133.54,7.4801668]
[1763957456057,0.66,133.58,133.53,7.4801668]
[1763957456263,18.12096,133.6,133.56,7.4801668]
[1763957456557,0.13499962,133.57,133.56,7.4801668]
[1763957458381,0.13499962,133.57,133.56,69.6501668]
[1763957458552,0.14828426,133.58,133.56,130.45743843]
[1763957458741,0.14828426,133.58,133.57,8.2288379]
[1763957459063,0.14828426,133.58,133.57,26.3497979]
[1763957459244,0.14533509,133.6,133.59,68.12096]
[1763957459558,0.14533509,133.6,133.59,79.66968582]
[1763957460461,0.13649415,133.63,133.59,79.66968582]
[1763957460462,0.13649415,133.63,133.61,50.0]
[1763957460663,7.6801668,133.72,133.66,18.12096]
[1763957460665,0.66,133.71,133.66,18.12096]
[1763957460850,0.66,133.71,133.66,21.44096]
[1763957461050,0.2,133.72,133.7,7.4801668]
[1763957461368,0.2,133.72,133.71,7.4801668]
[1763957462261,0.86,133.72,133.66,21.44096]
[1763957462450,0.86,133.72,133.69,7.4801668]
[1763957462968,0.66,133.71,133.69,7.4801668]
[1763957463462,8.1401668,133.71,133.66,7.4801668]
[1763957463771,0.66,133.71,133.68,7.4801668]
[1763957464068,0.66,133.7,133.68,7.4801668]
[1763957464472,0.66,133.7,133.67,7.4801668]
[1763957465966,0.2,133.72,133.69,7.4801668]
[1763957466193,0.2,133.72,133.71,7.4801668]
[1763957466348,0.2,133.72,133.71,10.8001668]
[1763957466955,0.2,133.72,133.71,7.4801668]
[1763957467379,0.2,133.72,133.69,3.32]
[1763957467557,0.86,133.72,133.68,7.4801668]
[1763957468069,0.66,133.71,133.68,7.4801668]
[1763957468267,0.66,133.71,133.67,3.32]
[1763957468454,0.66,133.71,133.68,7.4801668]
[1763957469459,0.66,133.71,133.67,10.8001668]
[1763957469670,0.66,133.71,133.67,7.4801668]
[1763957469880,0.66,133.71,133.68,7.4801668]
[1763957470378,7.4801668,133.7,133.64,7.4801668]
[1763957470882,0.66,133.69,133.64,7.4801668]
[1763957471055,8.1401668,133.69,133.64,7.4801668]
[1763957471247,0.66,133.69,133.64,7.4801668]
[1763957471446,0.66,133.68,133.64,7.4801668]
[1763957471688,0.86,133.72,133.67,7.4801668]
[1763957471861,0.2,133.72,133.7,7.4801668]
[1763957472169,0.2,133.72,133.71,7.4801668]
[1763957473351,0.86,133.72,133.69,0.7479991]
[1763957473559,8.3401668,133.72,133.67,7.4801668]
[1763957473747,0.66,133.71,133.67,7.4801668]
[1763957474478,7.4801668,133.7,133.65,7.4801668]
[1763957474678,7.4801668,133.7,133.63,3.32]
[1763957474852,0.66,133.69,133.65,7.4801668]
[1763957475958,0.66,133.69,133.66,7.4801668]
[1763957476287,8.1401668,133.69,133.63,3.32]
[1763957476568,0.15868463,133.67,133.63,3.32]
[1763957476792,0.15868463,133.67,133.66,7.4801668]
[1763957477086,0.15868463,133.67,133.66,8.22833379]
[1763957477460,0.15868463,133.67,133.66,58.22833379]
[1763957477781,0.15868463,133.67,133.66,91.55000369]
[1763957478283,0.15868463,133.67,133.62,21.44096]
[1763957478487,0.15868463,133.67,133.66,7.4801668]
[1763957478667,0.15868463,133.67,133.66,10.8001668]
[1763957479179,0.15868463,133.67,133.66,3.32]
[1763957479384,0.14783455,133.68,133.66,72.74148217]
[1763957479559,0.14783455,133.68,133.67,8.22827781]
[1763957479759,0.14783455,133.68,133.67,15.709388]
[1763957481584,0.14783455,133.68,133.67,8.22827781]
[1763957481791,0.82783455,133.68,133.66,7.4801668]
[1763957482292,0.82783455,133.68,133.65,10.8001668]
[1763957482880,0.82783455,133.68,133.66,7.4801668]
[1763957486705,0.82783455,133.68,133.67,7.4801668]
[1763957487277,0.82783455,133.68,133.67,69.42148217]
[1763957488184,0.14783455,133.68,133.67,69.42148217]
[1763957488792,0.82783455,133.68,133.67,69.42148217]
[1763957489380,0.82783455,133.68,133.65,62.1]
[1763957489579,7.4801668,133.67,133.62,10.8001668]
[1763957489798,8.30800135,133.68,133.63,7.4801668]
[1763957489989,0.68,133.67,133.63,7.4801668]
[1763957490405,0.68,133.67,133.62,3.32]
[1763957490600,0.68,133.67,133.62,10.8001668]
[1763957490900,0.68,133.67,133.63,7.4801668]
[1763957491102,8.1601668,133.67,133.62,3.32]
[1763957491478,0.68,133.66,133.62,3.32]
[1763957492380,0.68,133.66,133.62,10.8001668]
[1763957492580,0.68,133.66,133.63,7.4801668]
[1763957493589,0.68,133.66,133.64,7.4801668]
[1763957494108,0.68,133.66,133.65,7.4801668]
[1763957495008,0.14783455,133.68,133.65,69.5801668]
[1763957495206,0.82783455,133.68,133.67,7.4801668]
[1763957495806,0.82783455,133.68,133.66,7.4801668]
[1763957496504,0.82783455,133.68,133.65,62.1]
[1763957496688,0.15107689,133.67,133.65,62.1]
[1763957497088,0.68,133.66,133.65,62.1]
[1763957498885,0.68,133.66,133.65,61.38]
[1763957499888,8.1601668,133.66,133.61,7.4801668]
[1763957500402,0.68,133.65,133.61,7.4801668]
[1763957500725,18.95203689,133.67,133.63,7.4801668]
[1763957501026,18.95203689,133.67,133.64,7.4801668]
[1763957501208,0.68,133.66,133.63,7.4801668]
[1763957502525,0.15107689,133.67,133.65,7.4801668]
[1763957502732,18.95203689,133.67,133.65,7.4801668]
[1763957503031,18.95203689,133.67,133.64,7.4801668]
[1763957503317,0.68,133.66,133.64,7.4801668]
[1763957503494,0.68,133.66,133.63,10.8001668]
[1763957505006,0.68,133.66,133.63,7.4801668]
[1763957505214,0.68,133.66,133.63,68.8601668]
[1763957505713,0.68,133.66,133.63,61.38]
[1763957506019,0.15107689,133.67,133.65,7.4801668]
[1763957506237,0.15107689,133.67,133.66,7.4801668]
[1763957508620,0.15107689,133.67,133.65,3.32]
[1763957508621,0.87107689,133.67,133.65,3.32]
[1763957509112,0.15107689,133.67,133.65,3.32]
[1763957509310,0.15107689,133.67,133.65,10.8001668]
[1763957510036,0.87107689,133.67,133.65,10.8001668]
[1763957510200,0.15107689,133.67,133.65,10.8001668]
[1763957510402,0.72,133.66,133.63,61.38]
[1763957510700,0.72,133.66,133.62,3.32]
[1763957511831,0.15107689,133.67,133.65,11.46260146]
[1763957512003,0.15107689,133.67,133.66,11.46260146]
[1763957512705,0.15107689,133.67,133.66,12.11260146]
[1763957513042,0.15107689,133.67,133.66,11.46260146]
[1763957516121,0.87107689,133.67,133.65,3.34]
[1763957516439,0.87107689,133.67,133.66,11.46260146]
[1763957516440,0.15107689,133.67,133.66,11.46260146]
[1763957516650,0.13480468,133.67,133.66,11.46260146]
[1763957517629,0.13480468,133.67,133.65,14.80260146]
[1763957517965,0.85480468,133.67,133.65,14.80260146]
[1763957518248,0.13480468,133.67,133.65,14.80260146]
[1763957518827,0.13480468,133.67,133.65,3.34]
[1763957519148,0.13480468,133.67,133.66,11.46260146]
[1763957519441,0.13480468,133.67,133.65,14.80260146]
[1763957520422,0.72,133.66,133.59,18.71350934]
[1763957520738,0.72,133.66,133.6,11.45502994]
[1763957520940,0.72,133.66,133.61,11.46260146]
[1763957521135,0.13480468,133.67,133.65,11.46260146]
[1763957521327,0.72,133.66,133.65,61.38]
[1763957522541,12.18260146,133.66,133.61,3.32]
[1763957522743,12.18260146,133.66,133.61,11.46260146]
[1763957522940,0.72,133.65,133.61,11.46260146]
[1763957523614,0.72,133.65,133.6,14.80260146]
[1763957523811,12.18260146,133.65,133.57,0.65]
[1763957524027,18.84096,133.65,133.58,11.46260146]
[1763957524248,12.18260146,133.64,133.58,11.46260146]
[1763957524762,0.72,133.66,133.63,11.46260146]
[1763957525054,0.72,133.66,133.65,11.46260146]
[1763957525222,0.72,133.66,133.64,11.46260146]
[1763957525414,18.84096,133.66,133.64,11.46260146]
[1763957526845,0.13480468,133.67,133.65,15.45260146]
[1763957527021,0.13480468,133.67,133.66,12.21076845]
[1763957527346,0.13480468,133.67,133.66,12.86076845]
[1763957527930,0.13480468,133.67,133.66,0.74816699]
[1763957528249,0.13480468,133.67,133.6,50.0]
[1763957528448,0.13480468,133.67,133.65,11.46260146]
[1763957528949,0.13480468,133.67,133.66,11.46260146]
[1763957529537,0.85480468,133.67,133.64,3.34]
[1763957529849,0.85480468,133.67,133.65,11.46260146]
[1763957530468,0.13480468,133.67,133.65,11.46260146]
[1763957530750,0.13480468,133.67,133.64,3.34]
[1763957530751,0.13480468,133.67,133.66,11.46260146]
[1763957533447,0.13480468,133.67,133.64,12.22095154]
[1763957533448,0.85480468,133.67,133.65,11.46260146]
[1763957533755,0.85480468,133.67,133.61,3.34]
[1763957534053,0.85480468,133.67,133.63,11.46260146]
[1763957534522,0.13480468,133.67,133.66,11.46260146]
[1763957535540,0.13480468,133.67,133.65,0.74822297]
[1763957535740,0.13480468,133.67,133.66,11.46260146]
[1763957536644,0.15055569,133.67,133.66,11.46260146]
[1763957538758,0.85055569,133.67,133.64,11.46260146]
[1763957538954,0.85055569,133.67,133.59,8.90403743]
[1763957539139,0.85055569,133.67,133.62,11.46260146]
[1763957539338,18.12096,133.66,133.61,11.46260146]
[1763957539650,11.46260146,133.64,133.58,14.80260146]
[1763957539854,0.7,133.63,133.58,14.80260146]
[1763957540063,0.7,133.63,133.58,3.34]
[1763957540244,0.7,133.63,133.59,11.46260146]
[1763957540964,0.15055569,133.67,133.61,11.46260146]
[1763957540965,18.27151569,133.67,133.61,11.46260146]
[1763957541262,0.7,133.66,133.62,11.46260146]
[1763957541665,11.46260146,133.65,133.6,11.46260146]
[1763957542048,11.46260146,133.63,133.58,3.34]
[1763957542362,12.16260146,133.62,133.58,3.34]
[1763957542563,11.46260146,133.61,133.56,11.46260146]
[1763957542770,12.16260146,133.61,133.55,11.46260146]
[1763957543068,0.7,133.6,133.56,11.46260146]
[1763957543252,0.7,133.6,133.54,66.11]
[1763957543447,0.7,133.6,133.56,11.46260146]
[1763957545162,0.7,133.65,133.59,11.46260146]
[1763957545490,0.85055569,133.67,133.64,11.46260146]
[1763957545662,0.85055569,133.67,133.65,11.46260146]
[1763957545864,0.15055569,133.67,133.66,11.46260146]
[1763957546342,0.15055569,133.67,133.64,8.23102375]
[1763957546546,0.15055569,133.67,133.66,11.46260146]
[1763957546850,0.15055569,133.67,133.66,14.80260146]
[1763957550953,0.85055569,133.67,133.63,11.46260146]
[1763957552677,0.85055569,133.67,133.61,3.34]
[1763957552859,11.46260146,133.65,133.61,3.34]
[1763957553058,18.12096,133.65,133.58,3.34]
[1763957553370,0.7,133.64,133.6,11.46260146]
[1763957554672,0.7,133.64,133.58,3.34]
[1763957554872,29.58356146,133.62,133.54,73.59834844]
[1763957555174,29.58356146,133.62,133.56,11.46260146]
[1763957555364,0.7,133.61,133.56,11.46260146]
[1763957555678,0.7,133.61,133.57,11.46260146]
[1763957556556,0.15407835,133.58,133.57,11.46260146]
[1763957557652,0.15407835,133.58,133.57,22.95931254]
[1763957559088,0.15407835,133.58,133.57,14.80260146]
[1763957561593,0.15407835,133.58,133.57,178.90260146]
[1763957563658,0.15407835,133.58,133.57,167.44]
[1763957563982,0.15407835,133.58,133.57,178.90260146]
[1763957565880,0.15407835,133.58,133.57,187.06931254]
[1763957566763,0.15407835,133.58,133.57,186.38931254]
[1763957566963,0.15407835,133.58,133.57,178.90260146]
[1763957567369,0.15407835,133.58,133.57,167.44]
[1763957567564,0.15407835,133.58,133.57,178.90260146]
[1763957568598,0.15407835,133.58,133.57,187.06931254]
[1763957570459,0.15407835,133.58,133.57,186.38931254]
[1763957570662,0.15407835,133.58,133.57,182.41219471]
[1763957570882,0.15407835,133.58,133.57,183.09219471]
[1763957571580,0.15407835,133.58,133.57,175.60671108]
[1763957571771,0.15407835,133.58,133.57,183.09219471]
[1763957572383,0.15407835,133.58,133.57,174.92548363]
[1763957572567,0.14296362,133.59,133.58,84.46592165]
[1763957572773,0.14296362,133.59,133.58,93.38002034]
[1763957573189,0.14795944,133.6,133.58,93.38002034]
[1763957573484,0.14795944,133.6,133.59,11.50548363]
[1763957573685,0.15833071,133.61,133.59,109.63192726]
[1763957573861,0.15833071,133.61,133.6,38.91947025]
[1763957574059,0.13746043,133.62,133.6,46.40450019]
[1763957574280,0.13746043,133.62,133.61,11.50548363]
[1763957575582,0.13746043,133.62,133.61,197.97140528]
[1763957576263,0.13746043,133.62,133.61,205.455875]
[1763957576560,0.14650289,133.62,133.61,205.455875]
[1763957579287,0.14650289,133.62,133.61,197.97039137]
[1763957579586,0.80904223,133.64,133.63,69.14699727]
[1763957579898,0.80904223,133.64,133.63,171.14699727]
[1763957580571,0.14904223,133.64,133.63,171.14699727]
[1763957580802,0.15020507,133.65,133.63,205.15034681]
[1763957580972,0.16453287,133.66,133.65,7.48548363]
[1763957581287,0.82453287,133.66,133.65,7.48548363]
[1763957581886,0.82453287,133.66,133.65,10.80548363]
[1763957583700,0.82453287,133.66,133.65,3.32]
[1763957583876,0.82453287,133.66,133.6,61.66151364]
[1763957584190,0.82453287,133.66,133.61,7.48548363]
[1763957584494,8.3100165,133.66,133.61,7.48548363]
[1763957584984,0.66,133.65,133.61,7.48548363]
[1763957587974,0.66,133.65,133.6,61.66151364]
[1763957588189,0.66,133.65,133.61,7.48548363]
[1763957588386,0.66,133.65,133.62,7.48548363]
[1763957589264,0.66,133.65,133.59,64.98151364]
[1763957589469,0.66,133.65,133.61,7.48548363]
[1763957589987,0.66,133.65,133.6,7.48548363]
[1763957590386,0.66,133.65,133.61,7.48548363]
[1763957591190,0.66,133.65,133.6,7.48548363]
[1763957591890,0.66,133.65,133.59,10.80548363]
[1763957591891,8.14548363,133.65,133.59,10.80548363]
[1763957592189,7.48548363,133.62,133.56,7.48548363]
[1763957592786,7.48548363,133.62,133.57,7.48548363]
[1763957592787,0.66,133.61,133.57,7.48548363]
[1763957593583,0.66,133.61,133.56,7.48548363]
[1763957593898,0.66,133.61,133.57,7.48548363]
[1763957594268,0.66,133.61,133.55,3.32]
[1763957594487,0.66,133.61,133.57,7.48548363]
[1763957594795,0.66,133.61,133.56,7.48548363]
[1763957596594,0.15714981,133.57,133.51,0.1]
[1763957596771,0.15714981,133.57,133.51,7.58548363]
[1763957596772,25.76359344,133.57,133.51,7.58548363]
[1763957596978,8.14548363,133.56,133.51,7.58548363]
[1763957597281,8.14548363,133.56,133.51,0.1]
[1763957597599,0.66,133.55,133.51,0.1]
[1763957597778,0.66,133.55,133.52,7.48548363]
[1763957599303,0.66,133.55,133.51,0.1]
[1763957599601,7.48548363,133.52,133.5,0.1]
[1763957599815,18.12096,133.52,133.5,0.1]
[1763957600099,0.66,133.51,133.5,0.1]
[1763957601103,0.66,133.51,133.5,7.58548363]
[1763957601278,18.78096,133.53,133.5,7.58548363]
[1763957601604,0.66,133.53,133.51,7.48548363]
[1763957601905,18.12096,133.54,133.51,7.48548363]
[1763957601906,0.66,133.52,133.51,7.48548363]
[1763957602489,0.66,133.52,133.5,7.58548363]
[1763957602679,0.66,133.52,133.5,0.1]
[1763957604681,18.78096,133.52,133.5,0.1]
[1763957604882,26.26644363,133.52,133.5,0.1]
[1763957605082,0.66,133.51,133.5,0.1]
[1763957605400,8.14548363,133.51,133.49,0.1]
[1763957605582,10.80548363,133.5,133.49,0.1]
[1763957605786,11.46548363,133.5,133.49,0.1]
[1763957609611,28.44160395,133.5,133.49,0.1]
[1763957610002,13.46548362,133.5,133.49,0.1]
[1763957610306,11.46548363,133.5,133.49,0.1]
[1763957610687,3.98,133.5,133.49,0.1]
[1763957610888,29.58644363,133.5,133.49,0.1]
[1763957616715,29.72156628,133.5,133.49,0.1]
[1763957617221,31.72156627,133.5,133.49,0.1]
[1763957617918,46.6976866,133.5,133.49,0.1]
[1763957618802,31.72156627,133.5,133.49,0.1]
[1763957618992,29.72156628,133.5,133.49,0.1]
[1763957619524,37.21220298,133.5,133.49,0.1]
[1763957620023,29.72156628,133.5,133.49,0.1]
[1763957625908,44.69768661,133.5,133.49,0.1]
[1763957626109,46.6976866,133.5,133.49,0.1]
[1763957626301,46.6976866,133.5,133.46,0.1]
[1763957626302,1.99999999,133.48,133.46,0.1]
[1763957626512,6.2035411,133.47,133.46,0.1]
[1763957626819,6.9035411,133.47,133.46,0.1]
[1763957627895,2.8835411,133.47,133.46,0.1]
[1763957628095,25.0245011,133.47,133.46,0.1]
[1763957628516,11.52820109,133.47,133.46,0.1]
[1763957630572,22.14096,133.47,133.46,0.1]
[1763957630702,29.64916109,133.47,133.46,0.1]
[1763957632412,39.14148145,133.47,133.46,0.1]
[1763957632612,43.13756003,133.47,133.46,0.1]
[1763957633209,35.64523966,133.47,133.46,0.1]
[1763957635143,43.13756003,133.47,133.46,0.1]
[1763957636626,43.27344204,133.47,133.46,0.1]
[1763957640149,32.46112167,133.47,133.46,0.1]
[1763957640358,35.78112167,133.47,133.46,0.1]
[1763957640521,43.27344204,133.47,133.46,0.1]
[1763957641944,47.19372953,133.47,133.46,0.1]
[1763957644959,1.99999999,133.46,133.45,0.144961]
[1763957645159,14.20427966,133.46,133.45,0.144961]
[1763957645928,14.20427966,133.46,133.44,0.1]
[1763957645929,1.99999999,133.45,133.44,0.1]
[1763957646136,1.99999999,133.45,133.41,0.1]
[1763957646137,1.99999999,133.44,133.41,0.1]
[1763957646450,14.20427966,133.44,133.41,0.1]
[1763957647233,23.00855934,133.44,133.38,0.1]
[1763957647426,31.62523966,133.4,133.38,0.1]
[1763957647650,34.96523966,133.4,133.38,0.1]
[1763957647972,35.66523966,133.4,133.38,0.1]
[1763957648137,43.16149153,133.4,133.38,0.1]
[1763957649240,1.99999999,133.39,133.38,0.1]
[1763957649427,14.20427966,133.39,133.38,0.1]
[1763957650032,14.20427966,133.39,133.32,0.8]
[1763957650033,7.49906261,133.35,133.32,0.1]
[1763957650241,31.62523966,133.33,133.32,0.1]
[1763957650748,32.32523966,133.33,133.32,0.1]
[1763957651254,3.34,133.33,133.32,0.1]
[1763957651440,14.84427967,133.33,133.32,0.1]
[1763957652349,3.34,133.33,133.32,0.1]
[1763957652553,14.84427967,133.33,133.32,0.1]
[1763957652758,15.54427967,133.33,133.32,0.1]
[1763957653132,14.84427967,133.33,133.32,0.1]
[1763957653339,15.54427967,133.33,133.32,0.1]
[1763957653738,32.96523967,133.33,133.32,0.1]
[1763957653946,14.84427967,133.33,133.32,0.8]
[1763957654370,14.84427967,133.33,133.32,0.1]
[1763957655851,3.34,133.33,133.32,0.82]
[1763957656161,32.96523967,133.33,133.32,0.82]
[1763957656349,21.46096,133.33,133.32,0.82]
[1763957656549,11.50427967,133.37,133.32,0.82]
[1763957656772,0.14855886,133.33,133.32,0.82]
[1763957658070,0.14855886,133.33,133.32,0.697]
[1763957659172,0.14855886,133.33,133.32,12.20127967]
[1763957661056,0.14855886,133.33,133.32,0.697]
[1763957661572,0.14855886,133.33,133.32,12.20127967]
[1763957663055,0.14855886,133.33,133.32,0.697]
[1763957665079,0.14855886,133.33,133.32,12.20127967]
[1763957667478,0.14855886,133.33,133.32,0.697]
[1763957669256,0.14855886,133.33,133.32,12.20127967]
[1763957669969,0.14855886,133.33,133.32,0.697]
[1763957670154,0.14855886,133.33,133.32,12.20127967]
[1763957671284,0.14855886,133.33,133.32,19.70202974]
[1763957672561,0.14855886,133.33,133.32,12.70532949]
[1763957675464,0.14855886,133.33,133.32,5.20457942]
[1763957675996,0.14855886,133.33,133.31,8.25143494]
[1763957675997,0.14855886,133.33,133.31,4.50757942]
[1763957676180,0.14855886,133.33,133.3,4.50757942]
[1763957676371,0.14855886,133.33,133.32,4.50757942]
[1763957676574,18.12096,133.35,133.32,4.50757942]
[1763957676784,0.15881458,133.33,133.32,4.50757942]
[1763957677963,0.15881458,133.33,133.28,7.5030012]
[1763957678164,0.15881458,133.33,133.32,4.50757942]
[1763957678782,0.15881458,133.33,133.29,7.50222517]
[1763957678978,0.15881458,133.33,133.31,4.50757942]
[1763957679563,0.15881458,133.33,133.3,4.50757942]
[1763957682180,0.15881458,133.33,133.31,4.50757942]
[1763957684270,10.48757941,133.32,133.24,0.1]
[1763957684469,4.50757942,133.25,133.15,3.00876302]
[1763957684693,0.66,133.32,133.15,3.00876302]
[1763957684694,1.99999999,133.27,133.15,3.00876302]
[1763957684891,0.66,133.26,133.2,4.50757942]
[1763957685087,0.66,133.26,133.19,4.50757942]
[1763957685285,22.62853942,133.23,133.16,5.22757942]
[1763957685687,23.30853942,133.23,133.17,0.69]
[1763957685887,18.12096,133.19,133.14,0.69]
[1763957686083,18.12096,133.19,133.07,50.0]
[1763957686084,4.50757942,133.17,133.11,4.50757942]
[1763957686286,4.50757942,133.15,133.09,4.50757942]
[1763957686490,4.50757942,133.15,133.09,5.19757942]
[1763957686688,11.55386293,133.15,133.1,0.69]
[1763957687197,12.23386293,133.15,133.1,0.69]
[1763957687580,18.12096,133.14,133.1,0.69]
[1763957687886,18.12096,133.16,133.1,0.69]
[1763957688089,29.67482293,133.16,133.1,12.24386293]
[1763957688303,11.55386293,133.12,133.08,0.69]
[1763957689107,11.55386293,133.11,133.06,0.69]
[1763957689284,11.55386293,133.1,133.06,0.69]
[1763957689598,11.55386293,133.12,133.06,12.24386293]
[1763957689902,11.55386293,133.12,133.03,26.30972295]
[1763957689903,11.55386293,133.12,133.07,12.24386293]
[1763957690071,11.55386293,133.12,133.07,0.69]
[1763957690402,11.55386293,133.11,133.04,7.51605826]
[1763957690585,11.55386293,133.11,133.05,11.55386293]
[1763957690787,11.55386293,133.11,133.05,12.24386293]
[1763957691098,11.55386293,133.13,133.07,11.55386293]
[1763957691277,11.55386293,133.14,133.08,11.55386293]
[1763957691478,11.55386293,133.14,133.06,0.69]
[1763957691693,11.55386293,133.14,133.09,11.55386293]
[1763957691877,11.55386293,133.14,133.08,11.55386293]
[1763957692081,11.55386293,133.13,133.08,11.55386293]
[1763957692280,11.55386293,133.13,133.09,0.69]
[1763957692704,7.54197616,133.13,133.09,0.69]
[1763957693088,7.54197616,133.13,133.07,7.51439851]
[1763957693089,7.54197616,133.12,133.07,7.51439851]
[1763957693294,7.54197616,133.12,133.07,8.23197616]
[1763957693605,7.54197616,133.12,133.08,0.69]
[1763957693988,0.68,133.13,133.08,0.69]
[1763957694192,7.54197616,133.12,133.08,0.69]
[1763957694578,7.54197616,133.13,133.08,0.69]
[1763957695095,7.54197616,133.13,133.08,15.74611465]
[1763957695484,7.54197616,133.13,133.09,0.69]
[1763957695877,8.22197616,133.13,133.09,0.69]
[1763957696502,8.22197616,133.12,133.07,8.23197616]
[1763957696710,0.1568984,133.1,133.07,8.23197616]
[1763957696880,0.1568984,133.1,133.08,0.69]
[1763957699913,0.1568984,133.1,133.06,0.69]
[1763957700100,7.54197616,133.09,133.04,8.23197616]
[1763957700416,7.54197616,133.06,133.02,0.76537956]
[1763957700632,7.54197616,133.04,133.02,0.07537956]
[1763957700794,7.54197616,133.05,133.02,0.07537956]
[1763957700998,7.54197616,133.06,133.02,0.07537956]
[1763957701197,7.54197616,133.05,133.02,0.76537956]
[1763957701404,18.12096,133.07,133.02,8.30735572]
[1763957701606,18.12096,133.07,133.03,7.54197616]
[1763957701817,26.34293616,133.07,133.02,8.30735572]
[1763957702224,0.1568984,133.1,133.03,8.23197616]
[1763957702225,0.8368984,133.1,133.03,8.23197616]
[1763957702414,7.54197616,133.08,133.03,0.69]
[1763957702719,7.54197616,133.06,133.02,0.07537956]
[1763957703019,7.54197616,133.05,133.02,0.07537956]
[1763957703619,8.22197616,133.05,133.02,0.07537956]
[1763957703806,7.54197616,133.05,133.02,0.07537956]
[1763957704007,7.54197616,133.06,133.02,0.07537956]
[1763957704416,8.22197616,133.06,133.02,0.07537956]
[1763957704720,7.54197616,133.08,133.03,7.54197616]
[1763957704917,25.66293616,133.09,133.04,7.54197616]
[1763957705296,18.12096,133.09,133.05,8.23197616]
[1763957705511,7.69887456,133.1,133.05,8.23197616]
[1763957705706,0.1568984,133.1,133.06,8.23197616]
[1763957705916,0.1568984,133.1,133.07,7.54197616]
[1763957706106,0.1568984,133.1,133.07,0.69]
[1763957706312,0.1568984,133.1,133.02,4.20714621]
[1763957706313,7.54197616,133.08,133.02,0.76537956]
[1763957706507,7.54197616,133.06,133.02,0.07537956]
[1763957707017,8.22197616,133.06,133.02,0.07537956]
[1763957707497,8.22197616,133.06,133.02,0.76537956]
[1763957707694,8.22197616,133.06,133.02,0.07537956]
[1763957707894,8.22197616,133.06,133.02,0.76537956]
[1763957708640,7.54197616,133.05,133.02,0.07537956]
[1763957708804,8.22197616,133.05,133.02,0.07537956]
[1763957709803,18.12096,133.07,133.02,0.07537956]
[1763957709804,8.22197616,133.04,133.02,0.07537956]
[1763957710003,7.54197616,133.03,133.02,0.07537956]
[1763957710200,7.54197616,133.03,132.95,8.23197616]
[1763957710201,7.54197616,133.0,132.95,8.23197616]
[1763957710433,18.12096,133.0,132.91,0.1]
[1763957710642,18.12096,133.0,132.94,7.54197616]
[1763957710643,7.54197616,132.99,132.94,7.54197616]
[1763957710836,7.54197616,132.99,132.93,0.69]
[1763957711139,7.54197616,132.99,132.94,7.54197616]
[1763957711494,7.54197616,133.0,132.95,8.23197616]
[1763957711700,4.06,133.02,132.96,7.54197616]
[1763957711919,11.60197616,133.02,132.96,8.23197616]
[1763957712120,7.54197616,133.01,132.96,8.23197616]
[1763957712429,7.54197616,133.0,132.94,0.69]
[1763957712727,7.54197616,132.99,132.94,8.23197616]